Cogmind - Beta 17 @@@ ROGUE MODE // 2026.06.27 @ 21:39:13 Player: mintimati Result: Destroyed by 3G-4J4(R) with Subdweller Machine Gun Performance ------------- Evolutions (0) 0 Regions Visited (2) 400 Robots Destroyed (9) 45 Value Destroyed (240) 240 Prototype IDs (1) 20 Alien Tech Used (0) 0 Bonus (5050) 5050 TOTAL SCORE: 5755 Bonus ------- Prayed to X0-1V1 5000 Major X0-1V1 Interference 50 Cogmind --------- Core Integrity 0/250 Matter 99/150 Energy 85/100 System Corruption 0% Temperature Cool (0) Movement Core (100) Ox1 Location -10/Subcaves Parts ------- > --- POWER (1) -------- (None) > --- PROPULSION (2) --- (None) > --- UTILITY (2) ------ Small Storage Unit Utility Shielding > --- WEAPON (2) ------- (None) > --- INVENTORY (8) ---- Light Ion Engine Aluminum Leg Aluminum Leg Improved Terrain Scanner Assault Rifle Peak State ------------ > --- POWER ------------ Ion Engine > --- PROPULSION ------- Aluminum Leg Aluminum Leg > --- UTILITY ---------- Small Storage Unit X0-1V1's Piety Tracker > --- WEAPON ----------- EM Pulse Gun Heavy Battle Rifle > --- INVENTORY -------- Light Ion Engine Aluminum Leg Aluminum Leg Improved Terrain Scanner Utility Shielding Assault Rifle [Rating: 22] Favorites ----------- Power Ion Engine Engine Ion Engine Propulsion Aluminum Leg Leg Aluminum Leg Utility Small Storage Unit Device Improved Terrain Scanner Storage Small Storage Unit Protection Utility Shielding Weapon EM Pulse Gun Energy Gun EM Pulse Gun Ballistic Gun Assault Rifle Special Weapon Mining Laser Build | -11 -10 -10 ------- Run | Yrd Mat Sub Slots Evolved . | . . . Power . | . . . Propulsion . | . . . Utility . | . . . Weapon . | . . . Parts Attached 16 | 7 6 3 Power 2 | 1 1 . Engine 2 | 1 1 . Core . | . . . Reactor . | . . . Propulsion 4 | 2 2 . Treads . | . . . Leg 4 | 2 2 . Wheel . | . . . Hover . | . . . Flight . | . . . Utility 4 | 2 . 2 Device 2 | 1 . 1 Storage 1 | 1 . . Processor . | . . . Hackware . | . . . Protection 1 | . . 1 Artifact . | . . . Weapon 6 | 2 3 1 Energy Gun 3 | 2 1 . Energy Cannon . | . . . Ballistic Gun 2 | . 1 1 Ballistic Cannon . | . . . Launcher . | . . . Special Weapon 1 | . 1 . Impact Weapon . | . . . Slashing Weapon . | . . . Piercing Weapon . | . . . Special Melee Weapon . | . . . Unidentified Prototypes 1 | . . 1 Parts Lost 8 | . 2 6 Power 2 | . 1 1 Propulsion 2 | . . 2 Utility 1 | . . 1 Weapon 3 | . 1 2 Highest Loss Streak 6 | . 2 6 To Critical Strikes . | . . . Average Backups 3 | 1 4 6 Power . | . . 1 Propulsion . | . 1 2 Utility . | . . 2 Weapon 1 | 1 2 1 Tool/Special . | . . . Unused Backups 6 | . 1 5 Power 1 | . . 1 Propulsion 2 | . . 2 Utility 1 | . . 1 Weapon 2 | . 1 1 Tool/Special . | . . . Average Slot Usage (%) 97 | . 99 92 Engine 13 | . 13 13 Leg 27 | . 28 26 Device 13 | . 14 12 Storage 14 | . 14 14 Energy Gun 17 | . 19 11 Ballistic Gun 8 | . 6 14 Special Weapon 1 | . 1 . Peak Build Rating 22 | 9 9 22 Average Rating 8 | 5 8 15 On Entrance 6 | . 9 9 Avg Prop Armor Cover (%) . | . . . Naked Turns . | . . . Heaviest Build 17 | 13 15 17 Greatest Support 20 | 20 20 20 Greatest Overweight (x) . | . . . Average Overweight (x) . | . . . Largest Inventory Capacity 8 | 8 8 8 Average Capacity 7 | 7 8 8 Most Carried 8 | 3 8 8 Average Carried 3 | 1 4 7 Final Capacity 8 | 8 8 8 Final Carried 6 | 2 6 5 Class Distribution -------------------- 70% | Mutant 29% | Scavenger-Mutant Dominant Class ---------------- Mutant | -10/Materials Mutant | -10/Subcaves Resources | -11 -10 -10 ----------- Run | Yrd Mat Sub Matter Collected 252 | 188 64 . Remotely . | . . . Salvage Created 343 | 45 214 84 Parts 21 | 5 7 9 Haulers Intercepted . | . . . Recyclers Shooed . | . . . Parts Field Recycled . | . . . Retrieved Matter . | . . . Parts Self-Destructed . | . . . Prevented . | . . . Parts Restored . | . . . Kills | -11 -10 -10 ------- Run | Yrd Mat Sub Combat Hostiles Destroyed 7 | . 5 2 Guns 7 | . 5 2 Classes Destroyed 4 | 1 2 1 Tunneler 2 | 2 . . Swarmer 1 | . 1 . Grunt 4 | . 4 . Subdweller 2 | . . 2 Best Kill Streak 2 | 2 2 1 Combat Bots Only 2 | . 2 1 Max Kills in Single Turn 1 | 1 1 1 Gunslinging . | . . . Exploded . | . . . Melee . | . . . Uniques/NPCs Destroyed . | . . . Combat | -11 -10 -10 -------- Run | Yrd Mat Sub Hostile Shots Fired 65 | . 21 44 Missed 17 | . 6 11 Hits 48 | . 15 33 Projectile 48 | . 15 33 Damage Taken 982 | . 297 685 Core 252 | . 27 225 Absorbed by Shields . | . . . Core Remaining (%) 100 | 100 . . Volleys Fired 44 | 3 24 17 Largest 2 | 2 2 2 Hottest 100 | 80 100 73 Shots Fired 70 | 6 44 20 Gun 66 | 6 40 20 Cannon . | . . . Launcher . | . . . Special 4 | . 4 . Kinetic 22 | . 5 17 Thermal 4 | . 4 . Explosive . | . . . Electromagnetic 44 | 6 35 3 Robot Hit Streak 20 | 2 20 17 Robot Miss Streak 3 | 2 3 1 Penetration Max . | . . . Secondary Targets . | . . . Shots Hit Robots 52 | 4 29 19 Core Hits 20 | 5 10 5 Critical Kills . | . . . Critical Parts Destroyed . | . . . Critical Strikes 1 | . . 1 Destroy 1 | . . 1 Melee Attacks . | . . . Impact . | . . . Slashing . | . . . Piercing . | . . . Sneak Attacks . | . . . Combat Hostiles . | . . . Follow-up Attacks . | . . . Damage Inflicted 755 | 111 387 257 Guns 714 | 70 387 257 Cannons . | . . . Explosions . | . . . Melee . | . . . Ramming 41 | 41 . . Kinetic 269 | . 34 235 Thermal . | . . . Explosive . | . . . Electromagnetic 445 | 70 353 22 Impact . | . . . Slashing . | . . . Piercing . | . . . Highest Corruption . | . . . Average Corruption . | . . . Corruption Purged . | . . . Corruption Blocked . | . . . Overload Shots . | . . . Overflow Damage . | . . . Projectiles . | . . . Explosions . | . . . Melee . | . . . Knockbacks . | . . . Impact . | . . . Kinetic . | . . . Secondary . | . . . Self-Inflicted Damage . | . . . Shots . | . . . Rammed . | . . . Targets Rammed 24 | 24 . . Kicked 24 | 24 . . Crushed . | . . . Highest Temperature 84 | 6 84 . Average Temperature 28 | 3 30 . Received Heat Transfer 162 | . 96 66 Siege Activations . | . . . Martial Activations . | . . . Shielding Activations . | . . . Robots Disrupted . | . . . Combat Hostiles . | . . . Robots Corrupted . | . . . Combat Hostiles . | . . . Parts Fried 1 | . 1 . Impact Corruptions . | . . . Robots Melted . | . . . Combat Hostiles . | . . . Parts Melted . | . . . Heat Transferred . | . . . Parts Sabotaged . | . . . Parts Stolen . | . . . Parts Stripped . | . . . Power Chain Reactions . | . . . Alert | -11 -10 -10 ------- Run | Yrd Mat Sub Maximum Alert Level . | . . . Low Security (%) 100 | 100 100 . Level 1 . | . . . Level 2 . | . . . Level 3 . | . . . Level 4 . | . . . Level 5 . | . . . High Security . | . . . Max Security . | . . . Peak Influence 111 | 5 111 . Initial . | . . . Average 23 | . 39 . Influence Increases 211 | 10 201 . Destroy 0b10 Robot/C 100 | . 100 . Destroy 0b10 Robot/NC 10 | 10 . . Destroy Leader 10 | . 10 . Successful Hack 12 | . 12 . Destroy Structure 4 | . 4 . Partial Spotted 15 | . 15 . Lose Combat Pursuer 60 | . 60 . Influence Decreases 211 | 10 201 . Time Decay 191 | 10 181 . Lost Part 20 | . 20 . Squads Dispatched 1 | . 1 . Investigation . | . . . Extermination . | . . . Reinforcement 1 | . 1 . Assault . | . . . Garrison . | . . . Intercept . | . . . Searches Triggered . | . . . Construction Impeded . | . . . Haulers Reinforced . | . . . Active Scanning Responses . | . . . Cargo Convoy Interrupts . | . . . Stealth | -11 -10 -10 --------- Run | Yrd Mat Sub Distress Signals 2 | . 2 . Communications Jammed . | . . . Distress Signals . | . . . Times Spotted 19 | . 13 6 Peak Tracking Total 8 | . 6 8 Tactical Retreats 4 | . 3 1 Traps | -11 -10 -10 ------- Run | Yrd Mat Sub Traps Triggered . | . . . Indirectly . | . . . Trap Hack Attempts . | . . . Triggered . | . . . Disarmed . | . . . Reprogrammed . | . . . Reused . | . . . Traps Extracted . | . . . Installed . | . . . Triggered . | . . . Machines | -11 -10 -10 ---------- Run | Yrd Mat Sub Machines Disabled . | . . . Max in Single Turn . | . . . Machines Repaired . | . . . Machines Dismantled . | . . . Machines Sabotaged . | . . . Overloaded Fab Kills . | . . . Hacking | -11 -10 -10 --------- Run | Yrd Mat Sub Machines Accessed 1 | . 1 . Terminals . | . . . Fabricators . | . . . Repair Stations 1 | . 1 . Recycling Units . | . . . Scanalyzers . | . . . Garrison Access . | . . . Total Hacks 1 | . 1 . Successful 1 | . 1 . Failed . | . . . Catastrophic . | . . . Database Lockouts . | . . . Manual 2 | . 2 . Terminals . | . . . Fabricators . | . . . Repair Stations 1 | . 1 . Recycling Units . | . . . Scanalyzers . | . . . Garrison Access . | . . . Terminal Hacks . | . . . Fabricator Hacks . | . . . Repair Station Hacks 1 | . 1 . Scan Component 1 | . 1 . Recycling Unit Hacks . | . . . Scanalyzer . | . . . Garrison Access Hacks . | . . . Unauthorized Hacks . | . . . Terminals . | . . . Fabricators . | . . . Repair Stations . | . . . Recycling Units . | . . . Scanalyzers . | . . . Garrison Access . | . . . Data Cores Recovered . | . . . Used . | . . . Hacking Detections 1 | . 1 . Full Trace Events . | . . . Feedback Events . | . . . Feedback Blocked . | . . . Robot Schematics Acquired . | . . . Robots Built . | . . . Authchips . | . . . Time . | . . . Total Robot Build Rating . | . . . Part Schematics Acquired . | . . . Parts Built . | . . . Authchips . | . . . Time . | . . . Total Part Build Rating . | . . . Part Studies Acquired . | . . . Parts Repaired . | . . . Time . | . . . Parts Recycled . | . . . Recycled Matter . | . . . Retrieved Matter . | . . . Retrieved Components . | . . . Parts Scanalyzed . | . . . Part Schematics Acquired . | . . . Parts Damaged . | . . . Bothacking | -11 -10 -10 ------------ Run | Yrd Mat Sub Used RIF Installer . | . . . Robots Hacked . | . . . Non-combat . | . . . Combat . | . . . Robot Hacks Applied . | . . . Relay Couplers Released . | . . . Fabnet Peak Effective % . | . . . Robots Rewired . | . . . Allies Hacked . | . . . Hacks Repelled . | . . . Allies | -11 -10 -10 -------- Run | Yrd Mat Sub Total Allies . | . . . Largest Group . | . . . Highest-Rated Group . | . . . Highest-Rated Ally . | . . . Total Orders . | . . . Ally Attacks . | . . . Total Damage . | . . . Kills . | . . . Allies Corrupted . | . . . Allies Melted . | . . . X0-1V1 Amusement Gains 45 | . 15 30 Bad Acts 2 | . . 2 Intel | -11 -10 -10 ------- Run | Yrd Mat Sub Active Infowar (turns) 356 | 57 247 52 Terrain 356 | 57 247 52 Robot Analysis Total . | . . . Derelict Logs Recovered . | . . . Drone Launches . | . . . Drone Recoveries . | . . . Exploration | -11 -10 -10 ------------- Run | Yrd Mat Sub Turns Passed 831 | 276 402 153 Spaces Moved 483 | 197 206 80 Core 23 | 23 . . Treads . | . . . Legs 460 | 174 206 80 Wheels . | . . . Hover . | . . . Flight . | . . . Fastest Speed 50 | 50 120 120 Average Speed 116 | 111 120 120 Slowest Speed 120 | 120 120 120 Overloaded Moves . | . . . Propulsion Burnouts . | . . . Robots Hopped . | . . . Potential Cave-ins . | . . . Cave-ins Triggered . | . . . Exploration Rate (%) 15 | 5 33 8 Regions Visited 2 Branch Regions 1 Pre-discovered Areas . | . . . Known Exits Taken . | . . . Unknown Exits Taken 2 | 1 1 . Scrap Searched . | . . . Spaces Dug 4 | . 4 . Terrain Destroyed 4 | . 4 . Melee . | . . . Projectile 4 | . 4 . AOE . | . . . Terrain Rammed . | . . . Walls Destroyed . | . . . Machines Disabled . | . . . Actions | -11 -10 -10 --------- Run | Yrd Mat Sub Total 672 | 242 310 120 Wait 71 | 3 59 9 Move 481 | 196 205 80 Hop . | . . . Pick Up 24 | 9 10 5 Fast Attach . | . . . Attach 15 | 7 5 3 Detach 2 | . 1 1 Swap 2 | . 2 . Drop 9 | . 4 5 Fire 44 | 3 24 17 Melee . | . . . Ram . | . . . Kick 24 | 24 . . Crush . | . . . Escape Stasis . | . . . Rewire . | . . . Trap . | . . . Miscellaneous . | . . . Route ------- -11/Scrapyard -10/Materials (discovered 2 exits: [*Mat] / [*Sub]) -10/Subcaves History --------- Turn | Location | Event 11 | -11/Scrapyard | Discovered new exit (range 15) 277 | -11/Scrapyard | Entered Materials 317 | -10/Materials | Build established: Mutant 554 | -10/Materials | Discovered new exit (range 9) 650 | -10/Materials | Discovered new exit (range 15) 677 | -10/Materials | Prayed at D.C.S.S. Altar Unit 679 | -10/Materials | Entered Subcaves 745 | -10/Subcaves | Ambushed by swarm of Subdwellers 766 | -10/Subcaves | Shifting Twisted Machinery released Hvy. Battle Rifle 768 | -10/Subcaves | Shifting Twisted Machinery released Sub. Machine Gun 781 | -10/Subcaves | Lost 3 allies 819 | -10/Subcaves | Core integrity fell below 50% 821 | -10/Subcaves | Core integrity fell below 20% 832 | -10/Subcaves | Destroyed by 3G-4J4(R) with Subdweller Machine Gun Last Messages --------------- 00794_ MA-5IR(R) destroyed. 00803_ EM Pulse Gun destroyed. 00807_ 3G-4J4(R) suffers critical hit (Destroy). 00810_ Aluminum Leg destroyed. 00812_ X0-1V1: "There's a penalty for shooting from the hip 'round these parts." (-9% ranged accuracy) 00816_ 3G-4J4(R) affixes Scrap Shield Fragment to Scrap Shield. 00818_ X0-1V1's Piety Tracker destroyed. 00818_ X0-1V1 is mildly amused. 00819_ D1-J9C(R) destroyed. 00822_ 2Q-7DI(R) destroyed. 00826_ I3-2EX(R) suffers critical hit (Destroy). 00826_ I3-2EX(R) destroyed. 00828_ Ion Engine destroyed. 00830_ Hvy. Battle Rifle destroyed. 00830_ Aluminum Leg destroyed. 00831_ X0-1V1 is amused. 00832_ X0-1V1 laughs nastily! Map ----- +----------------------------------------------------+ | ?????????????????????????????????????????????????? | | ?????????????????????????????????????????????????? | | ?????????????????????????????????????????????????? | | ?????????????????????????????????????????????????# | | ???????????????????????????????????????##???????? | | ??????????????????????????????????????## #?????? | | ?????????????????????????????????????? #????# | | ??????????????????????????????????????? #???# | | ??????????????????????????????????????## ??# | | ??????????????????????????????????????# #?# ? | | ???????????????????????????????????????# # ?? | | ???????????????????????????????????????# # $ ??? | | ????????????????????????????????????#### #???? | | ????????????????????????????????????# #???#? | | ???????????????????????????????????## #????? | | ??????????????????????????????????## #????? | | ?????????????????????????????????## #???#? | | ?????????????????????###?????????# [ #????? | | ????????????????????? #??# ??## ###### | | ????????????????????? "##""""??## # | | ????????????????????? "" """#?## | | ?????????????????????? """"" ### ## | | ???????????????????????"""""" # ## | | ???????????????????????#"&=[!! $ ### | | ??????????????????????##"=R!% ## ### ## | | ??????????????????????#!*@&"" # ?# ## ##### | | ??????????????????????#%"|%!R"#### #####???## # | | ??????????????????????#"|"##[!"" #????????### | | ??????????????????????##!### [ ##??????????? | | ???????????????????????###?### # ##???????????? | | ?????????????????????????????########????????????? | | ????????????????????????????????????????????????#? | | ????????????????????????????????????????????????#? | | ?????????????????????????????????????????????????? | | ?????????????????????????????????????????????????? | | ?????????????????????????????????????????????????? | | ?????????????????????????????????????????????????? | | ?????????????????????????????????????????????????? | | ?????????????????????????????????????????????????? | | ?????????????????????????????????????????????????? | | ?????????????????????????????????????????????????? | | ?????????????????????????????????????????????????? | | ?????????????????????????????????????????????????? | | ?????????????????????????????????????????????????? | | ?????????????????????????????????????????????????? | | | | | | | | | | | +----------------------------------------------------+ Best States ------------- Heat Dissipation 25 Energy Generation 10 Energy Capacity 250 Matter Stores 300 Matter Capacity 300 Sight Range 16 Terrain Scan Range 16 Terrain Scan Density 10 Evasion (%) 55 Item Schematics ----------------- None Robot Schematics ------------------ None Fabricated ------------ Nothing Repaired ---------- Nothing Studied --------- None Alien Tech Used ----------------- None Achievements -------------- None Challenges ------------ None Game ------ Seed VisualAssembledAmplifier Manual? 0 Play Time 00:09:21 Cumulative 12.8 hours Start 2026.06.27 @ 21:31:30 End 2026.06.27 @ 21:39:13 Sessions 1 Manual Loads 0 Difficulty Rogue Special Mode None Game No. 26 Rogue 26 Adventurer 0 Explorer 0 Win Type - Total 0 Types 0/0/0/0/0/0/0/0/0/0 Lore% 6 Gallery% 15 Achievement% 14 Wizard Run 0 Options --------- Layout 1 ASCII 0 Keyboard 1 Movement Numpad Keybinds 0 Fullscreen 1 Font 24/Smallcaps Map View 50x35 Zoom Use 0% Tactical HUD 1 Map Filters NONE Filters NONE Steam 1 RUN: 3d0aeebb-15e5-4bd7-a7e1-e49d26242f20